[Event "Schack-SM 2022: Mastarklassen"]
[Site "Fyrishov, Idrottsgatan 2, Uppsala, Sweden"]
[Date "2022.07.04"]
[Round "3.8"]
[White "Johansson, Thomas"]
[Black "Dingertz, Erik"]
[Result "1-0"]
[TimeControl "90 minutes for 40 moves + 30 minutes for the rest of the game + 30 seconds per move from move one."]
[WhiteFideId "1708244"]
[BlackFideId "1741578"]
[WhiteElo "2231"]
[BlackElo "2021"]

1. Nf3 {[%clk 01:24:21]} {[%emt 00:06:37]} Nf6 {[%clk 01:29:51]} {[%emt
00:01:10]} 2. c4 {[%clk 01:24:44]} {[%emt 00:00:07]} c5 {[%clk 01:30:18]}
{[%emt 00:00:03]} 3. g3 {[%clk 01:24:53]} {[%emt 00:00:21]} b6 {[%clk
01:30:43]} {[%emt 00:00:05]} 4. Bg2 {[%clk 01:25:16]} {[%emt 00:00:07]} Bb7
{[%clk 01:31:07]} {[%emt 00:00:07]} 5. O-O {[%clk 01:25:37]} {[%emt 00:00:08]}
g6 {[%clk 01:30:44]} {[%emt 00:00:53]} 6. d4 {[%clk 01:19:45]} {[%emt
00:06:22]} cxd4 {[%clk 01:29:41]} {[%emt 00:01:33]} 7. Qxd4 {[%clk 01:20:06]}
{[%emt 00:00:10]} Bg7 {[%clk 01:29:46]} {[%emt 00:00:25]} 8. Nc3 {[%clk
01:20:24]} {[%emt 00:00:12]} O-O {[%clk 01:30:00]} {[%emt 00:00:16]} 9. Qh4
{[%clk 01:20:19]} {[%emt 00:00:33]} d6 {[%clk 01:29:58]} {[%emt 00:00:33]} 10.
Bh6 {[%clk 01:18:21]} {[%emt 00:02:27]} Nbd7 {[%clk 01:29:33]} {[%emt
00:00:56]} 11. Rac1 {[%clk 01:12:15]} {[%emt 00:06:37]} Rc8 {[%clk 01:29:13]}
{[%emt 00:00:50]} 12. b3 {[%clk 01:12:21]} {[%emt 00:00:23]} a6 {[%clk
01:23:39]} {[%emt 00:06:04]} 13. Bxg7 {[%clk 01:12:06]} {[%emt 00:00:45]} Kxg7
{[%clk 01:21:34]} {[%emt 00:02:36]} 14. Qd4 {[%clk 01:12:02]} {[%emt 00:00:32]}
Rc5 {[%clk 01:05:19]} {[%emt 00:16:46]} 15. Ne1 {[%clk 01:04:59]} {[%emt
00:07:33]} Bxg2 {[%clk 00:49:12]} {[%emt 00:16:37]} 16. Nxg2 {[%clk 01:05:16]}
{[%emt 00:00:13]} Qc8 {[%clk 00:46:01]} {[%emt 00:03:42]} 17. Nd5 {[%clk
00:59:28]} {[%emt 00:06:16]} e5 {[%clk 00:40:15]} {[%emt 00:06:17]} 18. Qd2
{[%clk 00:58:38]} {[%emt 00:01:19]} Nxd5 {[%clk 00:40:27]} {[%emt 00:00:19]} 19.
cxd5 {[%clk 00:59:00]} {[%emt 00:00:07]} Nf6 {[%clk 00:40:47]} {[%emt
00:00:11]} 20. Ne3 {[%clk 00:58:52]} {[%emt 00:00:37]} Qd7 {[%clk 00:21:07]}
{[%emt 00:20:11]} 21. Rxc5 {[%clk 00:51:30]} {[%emt 00:07:52]} bxc5 {[%clk
00:21:29]} {[%emt 00:00:09]} 22. Nc4 {[%clk 00:50:24]} {[%emt 00:01:33]} h5
{[%clk 00:18:56]} {[%emt 00:03:05]} 23. f3 {[%clk 00:48:47]} {[%emt 00:02:07]}
h4 {[%clk 00:19:04]} {[%emt 00:00:23]} 24. g4 {[%clk 00:47:17]} {[%emt
00:01:59]} h3 {[%clk 00:15:30]} {[%emt 00:04:05]} 25. Kf2 {[%clk 00:47:34]}
{[%emt 00:00:12]} e4 {[%clk 00:14:23]} {[%emt 00:01:38]} 26. Kg3 {[%clk
00:47:05]} {[%emt 00:00:58]} Qe7 {[%clk 00:13:25]} {[%emt 00:01:28]} 27. Kxh3
{[%clk 00:35:45]} {[%emt 00:11:51]} exf3 {[%clk 00:05:19]} {[%emt 00:08:34]} 28.
exf3 {[%clk 00:35:00]} {[%emt 00:01:16]} Nxd5 {[%clk 00:05:09]} {[%emt
00:00:41]} 29. Kg2 {[%clk 00:32:55]} {[%emt 00:02:35]} Qb7 {[%clk 00:00:37]}
{[%emt 00:05:03]} 30. Rd1 {[%clk 00:31:40]} {[%emt 00:01:43]} Nb4 {[%clk
00:00:49]} {[%emt 00:00:20]} 31. Nxd6 {[%clk 00:31:45]} {[%emt 00:00:25]} Qc7
{[%clk 00:01:06]} {[%emt 00:00:13]} 32. Qc3+ {[%clk 00:21:28]} {[%emt
00:10:46]} f6 {[%clk 00:01:03]} {[%emt 00:00:34]} 33. a3 {[%clk 00:21:09]}
{[%emt 00:00:50]} Rd8 {[%clk 00:01:14]} {[%emt 00:00:18]} 34. axb4 {[%clk
00:21:14]} {[%emt 00:00:25]} Rxd6 {[%clk 00:01:35]} {[%emt 00:00:09]} 35. Rxd6
{[%clk 00:21:38]} {[%emt 00:00:06]} Qxd6 {[%clk 00:02:02]} {[%emt 00:00:03]} 36.
bxc5 {[%clk 00:21:55]} {[%emt 00:00:12]} Qe6 {[%clk 00:02:16]} {[%emt
00:00:17]} 37. Kf2 {[%clk 00:19:12]} {[%emt 00:03:12]} Qc6 {[%clk 00:01:35]}
{[%emt 00:01:11]} 38. g5 {[%clk 00:19:34]} {[%emt 00:00:07]} Qc7 {[%clk
00:01:47]} {[%emt 00:00:19]} 39. Qxf6+ {[%clk 00:19:40]} {[%emt 00:00:24]} Kh7
{[%clk 00:02:15]} {[%emt 00:00:04]} 40. Qd6 {[%clk 00:19:33]} {[%emt 00:00:36]}
Qb7 {[%clk 00:01:57]} {[%emt 00:00:48]} 41. c6 {[%clk 00:19:47]} {[%emt
00:00:16]} Qb6+ {[%clk 00:02:23]} {[%emt 00:00:04]} 42. Kg2 {[%clk 00:20:02]}
{[%emt 00:00:15]} Qe3 {[%clk 00:02:27]} {[%emt 00:00:27]} 43. Qd5 {[%clk
00:15:09]} {[%emt 00:05:19]} Qe2+ {[%clk 00:02:09]} {[%emt 00:00:52]} 44. Kg3
{[%clk 00:15:37]} {[%emt 00:00:02]} Qe1+ {[%clk 00:02:31]} {[%emt 00:00:08]} 45.
Kf4 {[%clk 00:15:43]} {[%emt 00:00:22]} Qh4+ {[%clk 00:01:50]} {[%emt
00:01:12]} 46. Ke3 {[%clk 00:15:53]} {[%emt 00:00:17]} Qe1+ {[%clk 00:02:14]}
{[%emt 00:00:09]} 47. Kd4 {[%clk 00:16:15]} {[%emt 00:00:06]} Qa1+ {[%clk
00:27:28]} {[%emt 00:05:17]} 48. Kc5 {[%clk 00:46:03]} {[%emt 00:00:41]} Qg1+
{[%clk 00:26:03]} {[%emt 00:01:57]} 49. Kd6 {[%clk 00:46:12]} {[%emt 00:00:20]}
Qxh2+ {[%clk 00:25:27]} {[%emt 00:01:07]} 50. Ke6 {[%clk 00:45:38]} {[%emt
00:01:01]} Qe2+ {[%clk 00:24:18]} {[%emt 00:01:41]} 51. Kf6 {[%clk 00:45:36]}
{[%emt 00:00:31]} Qb2+ {[%clk 00:23:53]} {[%emt 00:00:56]} 52. Qe5 {[%clk
00:45:57]} {[%emt 00:00:08]} Qc2 {[%clk 00:22:33]} {[%emt 00:01:50]} 53. Qe7+
{[%clk 00:46:18]} {[%emt 00:00:09]} Kh8 {[%clk 00:22:59]} {[%emt 00:00:05]} 54.
Qg7# {[%clk 00:46:40]} {[%emt 00:00:06]} 1-0

[Event "Schack-SM 2022: Mastarklassen"]
[Site "Fyrishov, Idrottsgatan 2, Uppsala, Sweden"]
[Date "2022.07.04"]
[Round "3.9"]
[White "Joensson, Jacob"]
[Black "Sundin, Emanuel"]
[Result "1-0"]
[TimeControl "90 minutes for 40 moves + 30 minutes for the rest of the game + 30 seconds per move from move one."]
[WhiteFideId "1726315"]
[BlackFideId "1719173"]
[WhiteElo "1947"]
[BlackElo "2160"]

1. d4 {[%clk 01:30:57]} {[%emt 00:00:02]} d5 {[%clk 01:30:09]} {[%emt
00:00:52]} 2. c4 {[%clk 01:31:18]} {[%emt 00:00:09]} c6 {[%clk 01:29:38]}
{[%emt 00:01:01]} 3. Nf3 {[%clk 01:31:23]} {[%emt 00:00:26]} e6 {[%clk
01:29:42]} {[%emt 00:00:25]} 4. Nc3 {[%clk 01:31:26]} {[%emt 00:00:28]} dxc4
{[%clk 01:29:50]} {[%emt 00:00:21]} 5. e4 {[%clk 01:30:48]} {[%emt 00:01:08]}
b5 {[%clk 01:28:26]} {[%emt 00:01:54]} 6. Qc2 {[%clk 01:22:00]} {[%emt
00:09:17]} Nf6 {[%clk 01:20:24]} {[%emt 00:08:33]} 7. Be2 {[%clk 01:16:57]}
{[%emt 00:05:33]} Bb7 {[%clk 01:19:14]} {[%emt 00:01:40]} 8. O-O {[%clk
01:14:35]} {[%emt 00:02:52]} Nbd7 {[%clk 01:17:41]} {[%emt 00:02:02]} 9. Re1
{[%clk 01:11:09]} {[%emt 00:03:55]} a6 {[%clk 01:07:42]} {[%emt 00:10:31]} 10.
a4 {[%clk 00:58:17]} {[%emt 00:13:22]} Be7 {[%clk 00:54:38]} {[%emt 00:13:34]}
11. Bg5 {[%clk 00:51:17]} {[%emt 00:07:30]} h6 {[%clk 00:54:41]} {[%emt
00:00:26]} 12. Bh4 {[%clk 00:51:19]} {[%emt 00:00:29]} b4 {[%clk 00:42:22]}
{[%emt 00:12:48]} 13. e5 {[%clk 00:39:37]} {[%emt 00:12:13]} bxc3 {[%clk
00:40:02]} {[%emt 00:02:49]} 14. exf6 {[%clk 00:39:57]} {[%emt 00:00:10]} Bxf6
{[%clk 00:40:16]} {[%emt 00:00:17]} 15. Bxf6 {[%clk 00:39:47]} {[%emt
00:00:40]} Qxf6 {[%clk 00:39:59]} {[%emt 00:00:46]} 16. Qxc3 {[%clk 00:39:23]}
{[%emt 00:00:55]} c5 {[%clk 00:36:47]} {[%emt 00:03:42]} 17. dxc5 {[%clk
00:38:07]} {[%emt 00:01:46]} Qxc3 {[%clk 00:35:07]} {[%emt 00:02:10]} 18. bxc3
{[%clk 00:38:31]} {[%emt 00:00:06]} Nxc5 {[%clk 00:30:38]} {[%emt 00:04:59]} 19.
Ne5 {[%clk 00:38:04]} {[%emt 00:00:56]} Ke7 {[%clk 00:27:42]} {[%emt 00:03:26]}
20. Bxc4 {[%clk 00:34:58]} {[%emt 00:03:36]} Rhd8 {[%clk 00:23:41]} {[%emt
00:04:31]} 21. Rab1 {[%clk 00:31:32]} {[%emt 00:03:57]} Rd6 {[%clk 00:20:36]}
{[%emt 00:03:34]} 22. Nd3 {[%clk 00:27:33]} {[%emt 00:04:28]} Be4 {[%clk
00:17:19]} {[%emt 00:03:47]} 23. Nxc5 {[%clk 00:26:42]} {[%emt 00:01:21]} Bxb1
{[%clk 00:17:42]} {[%emt 00:00:08]} 24. Rxb1 {[%clk 00:26:59]} {[%emt
00:00:13]} Rc6 {[%clk 00:14:33]} {[%emt 00:03:39]} 25. Rb7+ {[%clk 00:26:55]}
{[%emt 00:00:34]} Kd6 {[%clk 00:08:40]} {[%emt 00:06:23]} 26. Ne4+ {[%clk
00:25:29]} {[%emt 00:01:56]} Ke5 {[%clk 00:09:08]} {[%emt 00:00:02]} 27. Nd2
{[%clk 00:25:43]} {[%emt 00:00:16]} Rd8 {[%clk 00:08:56]} {[%emt 00:00:42]} 28.
Nf3+ {[%clk 00:25:54]} {[%emt 00:00:20]} Kf6 {[%clk 00:09:17]} {[%emt
00:00:10]} 29. Be2 {[%clk 00:25:01]} {[%emt 00:01:23]} Rxc3 {[%clk 00:09:17]}
{[%emt 00:00:30]} 30. g3 {[%clk 00:24:36]} {[%emt 00:00:55]} Ra3 {[%clk
00:06:36]} {[%emt 00:03:10]} 31. Rb4 {[%clk 00:24:29]} {[%emt 00:00:37]} a5
{[%clk 00:05:28]} {[%emt 00:01:39]} 32. Rf4+ {[%clk 00:24:40]} {[%emt
00:00:18]} Kg6 {[%clk 00:01:35]} {[%emt 00:04:23]} 33. Ne5+ {[%clk 00:24:53]}
{[%emt 00:00:16]} Kh7 {[%clk 00:02:00]} {[%emt 00:00:06]} 34. Bb5 {[%clk
00:21:59]} {[%emt 00:03:25]} f6 {[%clk 00:01:44]} {[%emt 00:00:45]} 35. Nc4
{[%clk 00:21:41]} {[%emt 00:00:48]} Ra1+ {[%clk 00:01:48]} {[%emt 00:00:26]} 36.
Kg2 {[%clk 00:22:02]} {[%emt 00:00:08]} e5 {[%clk 00:01:39]} {[%emt 00:00:40]}
37. Rf3 {[%clk 00:21:44]} {[%emt 00:00:48]} Rd5 {[%clk 00:00:53]} {[%emt
00:01:16]} 38. Nxa5 {[%clk 00:21:10]} {[%emt 00:01:04]} Rxb5 {[%clk 00:01:09]}
{[%emt 00:00:14]} 39. axb5 {[%clk 00:21:34]} {[%emt 00:00:06]} Rxa5 {[%clk
00:01:34]} {[%emt 00:00:05]} 40. Rb3 {[%clk 00:21:59]} {[%emt 00:00:05]} Ra8
{[%clk 00:01:41]} {[%emt 00:00:23]} 41. f4 {[%clk 00:18:59]} {[%emt 00:03:30]}
exf4 {[%clk 00:29:56]} {[%emt 00:02:15]} 42. gxf4 {[%clk 00:49:18]} {[%emt
00:00:11]} Kg6 {[%clk 00:29:21]} {[%emt 00:01:05]} 43. Kf3 {[%clk 00:48:48]}
{[%emt 00:00:59]} Kf5 {[%clk 00:28:20]} {[%emt 00:01:31]} 44. b6 {[%clk
00:48:55]} {[%emt 00:00:24]} Rb8 {[%clk 00:27:49]} {[%emt 00:01:00]} 45. b7
{[%clk 00:49:17]} {[%emt 00:00:08]} Ke6 {[%clk 00:13:18]} {[%emt 00:15:01]} 46.
Ke4 {[%clk 00:45:47]} {[%emt 00:04:00]} Ke7 {[%clk 00:10:23]} {[%emt 00:03:24]}
47. Kd5 {[%clk 00:45:28]} {[%emt 00:00:49]} Kd7 {[%clk 00:06:14]} {[%emt
00:04:40]} 48. f5 {[%clk 00:45:47]} {[%emt 00:00:11]} h5 {[%clk 00:02:55]}
{[%emt 00:03:48]} 49. h4 {[%clk 00:46:12]} {[%emt 00:00:05]} Kc7 {[%clk
00:03:14]} {[%emt 00:00:12]} 50. Ke6 {[%clk 00:46:37]} {[%emt 00:00:05]} Rd8
{[%clk 00:02:23]} {[%emt 00:01:21]} 51. b8=Q+ {[%clk 00:46:55]} {[%emt
00:00:12]} Rxb8 {[%clk 00:02:20]} {[%emt 00:00:33]} 52. Rxb8 {[%clk 00:47:20]}
{[%emt 00:00:05]} Kxb8 {[%clk 00:02:47]} {[%emt 00:00:03]} 53. Kf7 {[%clk
00:47:45]} {[%emt 00:00:05]} 1-0

[Event "Schack-SM 2022: Mastarklassen"]
[Site "Fyrishov, Idrottsgatan 2, Uppsala, Sweden"]
[Date "2022.07.04"]
[Round "3.10"]
[White "Olsson, Svante"]
[Black "Mardell, Jimmy"]
[Result "0-1"]
[TimeControl "90 minutes for 40 moves + 30 minutes for the rest of the game + 30 seconds per move from move one."]
[WhiteFideId "1707353"]
[BlackFideId "1705610"]
[WhiteElo "2156"]
[BlackElo "2161"]

1. c4 {[%clk 01:04:47]} e5 {[%clk 01:26:17]} 2. Nc3 {[%clk 01:04:47]} Nf6
{[%clk 01:26:17]} 3. Nf3 {[%clk 01:04:47]} Nc6 {[%clk 01:26:17]} 4. g3 {[%clk
01:04:47]} Bb4 {[%clk 01:26:17]} 5. Bg2 {[%clk 01:04:47]} Bxc3 {[%clk
01:26:17]} 6. dxc3 {[%clk 01:04:47]} O-O {[%clk 01:26:17]} 7. O-O {[%clk
01:04:47]} d6 {[%clk 01:26:17]} 8. Ne1 {[%clk 01:04:47]} Be6 {[%clk 01:26:17]}
9. b3 {[%clk 01:04:47]} a5 {[%clk 01:26:17]} 10. a4 {[%clk 01:04:47]} Nd7
{[%clk 01:26:17]} 11. Nc2 {[%clk 01:04:47]} Nc5 {[%clk 01:26:17]} 12. Ne3
{[%clk 01:04:47]} f5 {[%clk 01:26:17]} 13. Nd5 {[%clk 01:04:47]} f4 {[%clk
01:26:17]} 14. b4 {[%clk 01:04:47]} Nd7 {[%clk 01:26:17]} 15. gxf4 {[%clk
01:04:47]} Rc8 {[%clk 01:26:17]} 16. b5 {[%clk 01:04:47]} Ncb8 {[%clk
01:26:17]} 17. fxe5 {[%clk 01:04:47]} Nxe5 {[%clk 01:26:17]} 18. Nf4 {[%clk
01:04:47]} Bxc4 {[%clk 01:26:17]} 19. Bd5+ {[%clk 01:04:47]} Bxd5 {[%clk
01:26:17]} 20. Qxd5+ {[%clk 01:04:47]} Kh8 {[%clk 01:26:17]} 21. Ne6 {[%clk
01:04:47]} Qh4 {[%clk 01:26:17]} 22. Qg2 {[%clk 01:04:47]} Rf7 {[%clk
01:26:17]} 23. f4 {[%clk 01:04:47]} Ng4 {[%clk 01:26:17]} 24. h3 {[%clk
01:04:47]} Nf6 {[%clk 01:26:17]} 25. e4 {[%clk 01:04:47]} Nbd7 {[%clk
01:26:17]} 26. Bd2 {[%clk 01:04:47]} Re8 {[%clk 01:26:17]} 27. Ng5 {[%clk
01:04:47]} Rfe7 {[%clk 01:26:17]} 28. Rae1 {[%clk 01:04:47]} Qh5 {[%clk
01:26:17]} 29. e5 {[%clk 01:04:47]} dxe5 {[%clk 01:26:17]} 30. f5 {[%clk
01:04:47]} h6 {[%clk 01:26:17]} 31. Ne6 {[%clk 01:04:47]} Nf8 {[%clk 01:26:17]}
32. Nc5 {[%clk 01:04:47]} b6 {[%clk 01:26:17]} 33. Ne4 {[%clk 01:04:47]} Nxe4
{[%clk 01:26:17]} 34. Rxe4 {[%clk 01:04:47]} Nd7 {[%clk 01:26:17]} 35. Rg4
{[%clk 01:04:47]} Nf6 {[%clk 01:26:17]} 36. Rg6 {[%clk 01:04:47]} Rf8 {[%clk
01:26:17]} 37. Rf3 {[%clk 01:04:47]} Rff7 {[%clk 01:26:17]} 38. Rfg3 {[%clk
01:04:47]} Kh7 {[%clk 01:26:17]} 39. Kh2 {[%clk 01:04:47]} Qxf5 {[%clk
01:26:17]} 40. Be3 {[%clk 01:04:47]} Rd7 {[%clk 01:26:17]} 0-1

[Event "Schack-SM 2022: Mastarklassen"]
[Site "Fyrishov, Idrottsgatan 2, Uppsala, Sweden"]
[Date "2022.07.03"]
[Round "2.5"]
[White "Strom-Engdahl, Alexander"]
[Black "Eriksson, Jorgen"]
[Result "1/2-1/2"]
[TimeControl "90 minutes for 40 moves + 30 minutes for the rest of the game + 30 seconds per move from move one."]
[WhiteFideId "1741586"]
[BlackFideId "1701967"]
[WhiteElo "2077"]
[BlackElo "2200"]

1. d4 {[%clk 01:30:58]} Nf6 {[%clk 01:27:30]} {[%emt 00:01:27]} 2. Bf4 {[%clk
01:31:21]} {[%emt 00:02:11]} c5 {[%clk 01:26:02]} {[%emt 00:01:57]} 3. e3
{[%clk 01:31:25]} {[%emt 00:00:27]} Qb6 {[%clk 01:25:56]} {[%emt 00:00:37]} 4.
Na3 {[%clk 01:31:37]} {[%emt 00:00:18]} d5 {[%clk 01:18:59]} {[%emt 00:07:27]}
5. Nb5 {[%clk 01:27:31]} {[%emt 00:04:37]} Na6 {[%clk 01:18:58]} {[%emt
00:00:31]} 6. dxc5 {[%clk 01:16:06]} {[%emt 00:11:55]} Qxc5 {[%clk 01:18:46]}
{[%emt 00:00:42]} 7. Qd4 {[%clk 01:14:55]} {[%emt 00:01:41]} e6 {[%clk
01:06:22]} {[%emt 00:12:53]} 8. Qxc5 {[%clk 01:08:48]} {[%emt 00:06:38]} Bxc5
{[%clk 01:05:40]} {[%emt 00:01:11]} 9. Nd6+ {[%clk 01:05:19]} {[%emt 00:03:59]}
Ke7 {[%clk 01:05:35]} {[%emt 00:00:35]} 10. Nxc8+ {[%clk 01:04:57]} {[%emt
00:00:54]} Rhxc8 {[%clk 01:03:39]} {[%emt 00:02:25]} 11. Bxa6 {[%clk 01:04:44]}
{[%emt 00:00:43]} bxa6 {[%clk 01:03:59]} {[%emt 00:00:09]} 12. Bg5 {[%clk
01:04:56]} {[%emt 00:00:19]} Rab8 {[%clk 01:01:06]} {[%emt 00:03:23]} 13. O-O-O
{[%clk 01:03:29]} {[%emt 00:01:57]} h6 {[%clk 01:01:16]} {[%emt 00:00:20]} 14.
Bxf6+ {[%clk 01:03:45]} {[%emt 00:00:14]} Kxf6 {[%clk 01:01:32]} {[%emt
00:00:13]} 15. Ne2 {[%clk 01:03:42]} {[%emt 00:00:34]} Rb7 {[%clk 00:55:45]}
{[%emt 00:06:17]} 16. Rd3 {[%clk 00:53:53]} {[%emt 00:10:18]} Rbc7 {[%clk
00:43:17]} {[%emt 00:12:59]} 17. Kb1 {[%clk 00:51:30]} {[%emt 00:02:53]} h5
{[%clk 00:41:39]} {[%emt 00:02:08]} 18. Rhd1 {[%clk 00:43:56]} {[%emt
00:08:03]} g6 {[%clk 00:37:52]} {[%emt 00:04:18]} 19. Rc3 {[%clk 00:40:33]}
{[%emt 00:03:53]} Ke7 {[%clk 00:36:22]} {[%emt 00:02:00]} 20. Nc1 {[%clk
00:38:17]} {[%emt 00:02:47]} Bd6 {[%clk 00:32:14]} {[%emt 00:04:37]} 21. Rxc7+
{[%clk 00:38:33]} {[%emt 00:00:15]} Rxc7 {[%clk 00:32:34]} {[%emt 00:00:09]} 22.
Ne2 {[%clk 00:36:32]} {[%emt 00:02:30]} Rc4 {[%clk 00:30:11]} {[%emt 00:02:52]}
23. g3 {[%clk 00:33:18]} {[%emt 00:03:43]} h4 {[%clk 00:18:45]} {[%emt
00:11:59]} 24. Rd4 {[%clk 00:28:17]} {[%emt 00:05:31]} Rxd4 {[%clk 00:12:47]}
{[%emt 00:06:27]} 25. Nxd4 {[%clk 00:27:34]} {[%emt 00:01:13]} e5 {[%clk
00:12:09]} {[%emt 00:01:08]} 26. Nf3 {[%clk 00:27:35]} {[%emt 00:00:26]} hxg3
{[%clk 00:12:28]} {[%emt 00:00:13]} 27. hxg3 {[%clk 00:28:02]} {[%emt
00:00:03]} Kf6 {[%clk 00:11:43]} {[%emt 00:01:15]} 28. Kc1 {[%clk 00:28:15]}
{[%emt 00:00:18]} Kf5 {[%clk 00:12:01]} {[%emt 00:00:10]} 29. Kd1 {[%clk
00:28:21]} {[%emt 00:00:24]} Bc5 {[%clk 00:04:33]} {[%emt 00:07:58]} 30. Ke2
{[%clk 00:27:37]} {[%emt 00:01:14]} e4 {[%clk 00:03:41]} {[%emt 00:01:22]} 31.
Nd2 {[%clk 00:24:40]} {[%emt 00:03:27]} Ke5 {[%clk 00:03:26]} {[%emt 00:00:45]}
32. Nb3 {[%clk 00:23:38]} {[%emt 00:01:33]} Bb6 {[%clk 00:03:47]} {[%emt
00:00:08]} 33. c3 {[%clk 00:23:21]} {[%emt 00:00:47]} f5 {[%clk 00:03:04]}
{[%emt 00:01:12]} 34. Na1 {[%clk 00:22:32]} {[%emt 00:01:19]} g5 {[%clk
00:03:14]} {[%emt 00:00:20]} 35. Nc2 {[%clk 00:22:46]} {[%emt 00:00:16]} a5
{[%clk 00:01:32]} {[%emt 00:02:12]} 36. a4 {[%clk 00:22:56]} {[%emt 00:00:20]}
f4 {[%clk 00:00:43]} {[%emt 00:01:19]} 37. gxf4+ {[%clk 00:23:06]} {[%emt
00:00:20]} gxf4 {[%clk 00:01:10]} {[%emt 00:00:02]} 38. exf4+ {[%clk 00:19:19]}
{[%emt 00:04:18]} Kxf4 {[%clk 00:01:29]} {[%emt 00:00:11]} 39. Ne3 {[%clk
00:18:50]} {[%emt 00:01:00]} Ke5 {[%clk 00:01:23]} {[%emt 00:00:35]} 40. Ng4+
{[%clk 00:18:31]} {[%emt 00:00:48]} Kd6 {[%clk 00:00:41]} {[%emt 00:01:12]} 41.
Nf6 {[%clk 00:10:51]} {[%emt 00:08:11]} Ke6 {[%clk 00:30:29]} {[%emt 00:00:41]}
42. Ng4 {[%clk 00:39:44]} {[%emt 00:01:37]} d4 {[%clk 00:26:37]} {[%emt
00:04:22]} 43. cxd4 {[%clk 00:40:06]} {[%emt 00:00:09]} Bxd4 {[%clk 00:27:00]}
{[%emt 00:00:07]} 44. b3 {[%clk 00:38:56]} {[%emt 00:01:41]} Kd5 {[%clk
00:26:30]} {[%emt 00:00:59]} 45. Ne3+ {[%clk 00:39:00]} {[%emt 00:00:26]} Bxe3
{[%clk 00:24:33]} {[%emt 00:02:27]} 46. Kxe3 {[%clk 00:38:58]} {[%emt
00:00:32]} Ke5 {[%clk 00:24:40]} {[%emt 00:00:23]} 47. f3 {[%clk 00:39:18]}
{[%emt 00:00:10]} exf3 {[%clk 00:25:02]} {[%emt 00:00:08]} 48. Kxf3 {[%clk
00:39:46]} {[%emt 00:00:02]} 1/2-1/2

[Event "Schack-SM 2022: Mastarklassen"]
[Site "Fyrishov, Idrottsgatan 2, Uppsala, Sweden"]
[Date "2022.07.03"]
[Round "2.6"]
[White "Jogstad, Daniel"]
[Black "Joensson, Jacob"]
[Result "1-0"]
[TimeControl "90 minutes for 40 moves + 30 minutes for the rest of the game + 30 seconds per move from move one."]
[WhiteTitle "CM"]
[WhiteFideId "1718959"]
[BlackFideId "1726315"]
[WhiteElo "2057"]
[BlackElo "1947"]

1. e4 {[%clk 01:29:37]} {[%emt 00:01:23]} e5 {[%clk 01:30:54]} {[%emt
00:00:06]} 2. Nf3 {[%clk 01:30:02]} {[%emt 00:00:05]} Nc6 {[%clk 01:31:20]}
{[%emt 00:00:04]} 3. Bc4 {[%clk 01:30:28]} {[%emt 00:00:04]} Nf6 {[%clk
01:31:44]} {[%emt 00:00:06]} 4. d3 {[%clk 01:30:53]} {[%emt 00:00:04]} Bc5
{[%clk 01:32:07]} {[%emt 00:00:07]} 5. c3 {[%clk 01:31:18]} {[%emt 00:00:05]}
O-O {[%clk 01:32:29]} {[%emt 00:00:09]} 6. O-O {[%clk 01:31:43]} {[%emt
00:00:04]} h6 {[%clk 01:27:34]} {[%emt 00:05:25]} 7. d4 {[%clk 01:27:29]}
{[%emt 00:04:43]} Bd6 {[%clk 01:23:47]} {[%emt 00:04:18]} 8. Re1 {[%clk
01:22:41]} {[%emt 00:05:17]} Re8 {[%clk 01:22:24]} {[%emt 00:01:54]} 9. Nbd2
{[%clk 01:23:04]} {[%emt 00:00:07]} Bf8 {[%clk 01:21:49]} {[%emt 00:01:05]} 10.
d5 {[%clk 01:11:49]} {[%emt 00:11:45]} Nb8 {[%clk 01:21:52]} {[%emt 00:00:27]}
11. Nf1 {[%clk 01:11:58]} {[%emt 00:00:19]} d6 {[%clk 01:20:44]} {[%emt
00:01:39]} 12. Ng3 {[%clk 01:09:03]} {[%emt 00:03:25]} g6 {[%clk 01:17:42]}
{[%emt 00:03:32]} 13. Bd2 {[%clk 01:00:10]} {[%emt 00:09:23]} Kh7 {[%clk
01:03:01]} {[%emt 00:15:11]} 14. b4 {[%clk 01:00:04]} {[%emt 00:00:36]} Qd7
{[%clk 00:55:34]} {[%emt 00:07:58]} 15. Bb3 {[%clk 00:53:41]} {[%emt 00:06:52]}
c6 {[%clk 00:46:52]} {[%emt 00:09:13]} 16. c4 {[%clk 00:51:45]} {[%emt
00:02:26]} a6 {[%clk 00:44:22]} {[%emt 00:03:00]} 17. dxc6 {[%clk 00:50:19]}
{[%emt 00:01:56]} Nxc6 {[%clk 00:43:58]} {[%emt 00:00:54]} 18. Bc3 {[%clk
00:50:23]} Qc7 {[%clk 00:43:40]} {[%emt 00:01:14]} 19. Rc1 {[%clk 00:33:48]}
Be6 {[%clk 00:35:46]} {[%emt 00:25:28]} 20. a3 {[%clk 00:34:11]} Rac8 {[%clk
00:35:17]} {[%emt 00:01:06]} 21. Qd3 {[%clk 00:28:52]} Qb6 {[%clk 00:30:13]}
{[%emt 00:11:24]} 22. Nf1 {[%clk 00:25:45]} Na5 {[%clk 00:28:39]} {[%emt
00:05:41]} 23. c5 {[%clk 00:25:04]} dxc5 {[%clk 00:19:48]} {[%emt 00:10:32]} 24.
Bxe6 {[%clk 00:25:29]} {[%emt 00:00:05]} c4 {[%clk 00:19:54]} {[%emt 00:00:24]}
25. Ng5+ {[%clk 00:17:22]} {[%emt 00:08:37]} Kg7 {[%clk 00:18:05]} {[%emt
00:02:19]} 26. Qg3 {[%clk 00:17:44]} {[%emt 00:00:08]} hxg5 {[%clk 00:16:02]}
{[%emt 00:02:33]} 27. Bxc8 {[%clk 00:18:05]} {[%emt 00:00:09]} Nb3 {[%clk
00:15:46]} {[%emt 00:00:46]} 28. Rcd1 {[%clk 00:16:21]} {[%emt 00:02:15]} Rxc8
{[%clk 00:12:59]} {[%emt 00:03:17]} 29. Qxe5 {[%clk 00:16:45]} {[%emt
00:00:06]} 1-0